{"text_format":"1","workbook":"xlsx","n_sheets":67,"sheets":["Salim","ورقة264","استقطاع (4) 10 مليون العمارة 9","استقطاع (4)10 مليون بلدروز ","استقطاع (4) 100 راتب البحيرة 3","استقطاع (4)100 راتب مقدادية ","استقطاع (4)30 مليون صلاح الدين","استقطاع (1) صندوق تربية","استقطاع 2 5 مليون فاروق","استقطاع (4)  10 مليون فاروق","استقطاع (4) 5 مليون بلدروز","استقطاع (4) الرشيد اشنونا سيار","استقطاع (4) سيارات  بعقوبة","استقطاع (4) لصناعة المواد الان","استقطاع (4) نقابة المعلمين","استقطاع (4)5 مليون 14 بعقوبة","استقطاع 5 رعاية","استقطاع 6 رسم طابع ","استقطاع (4) 100 راتب 14 بعقوبة","استقطاع (4) اربعة مصرف الثقة","استقطاع(3)  مئة راتب فاروق","التامين مصرف 14 بعقوبة ","التامين مصرف الفاروق","استقطاع (4)الرافدين المحيط بغد","المصرف الزراعي الخالص ","المصرف الزراعي المقدادية","المصرف الزراعي بعقوبة ","المصرف الزراعي هبهب","امانات متنوعة صندوق اسكان","ايراد نهائي","بدل ايجار","تامين البحيرة","تامين المقدادية","تامين صلاح الدين","تنفيذ كاظمية ","تنفيذ الرصافة","تنفيذ الحلة ","تنفيذ ابي صيدا","تنفيذ البياع ","تنفيذ الخالص ","تنفيذ الزهور","تنفيذ العزيزية","تنفيذ بعقوبة","تنفيذ بلدروز","تنفيذ خان بني سعد","توقيفات تقاعدية","استقطاع (4) رافدين 311 سيارات","استقطاع (4)سلفة زواج فاروق","سلفة متنوعة","استقطاع (4)شركة ديالى","ضريبة دخل","عقاري","استقطاع (4) قرض اسكان بلدروز","استقطاع (4)مصرف الرافدين العلو","استقطاع 5 فرع الهندية","تنفيذ الدورة","تنفيذ كربلاء","استقطاع (4) 30 مليون فاروق","استقطاع (4) 5 مليون مصرف رافدي","استقطاع (4) مديرية زراعة ديالى","استقطاع (4) 10 مليون مقدادية","استقطاع (4) رشيد شنونا 10 مليو","استقطاع (4)جامعة ديالى قسم الش","استقطاع (4) فرع الاعظمية 10 مل","استقطاع (4) 30 مليون المقدادية","استقطاع (4)المصرف العراقي للتج","استقطاع(4) سلفة زواج صندوق الت"],"not_rendered":{"charts":0,"images":0,"macros":1,"external_links":0,"defined_names":3,"comments":3,"pivot_tables":0},"unopened":[],"bounds":{"document_bytes":16777216,"sheet_cells":100000,"rows_first":2000,"rows_last":500,"rows_between":2000,"halvings":0,"cell_chars":16384,"cell_head_chars":4096},"cells_cut":0,"cells_raw":0,"read":"whole","date_system":"1900"}

{"sheet":"Salim","index":0,"n_rows":74,"n_cols":80,"rows_kept":74,"cut":false,"hidden":false,"merged":[[1,5,3,13]]}
[]
[null,null,null,null,null,"برنامج مطابقة اشعار الحساب الجاري العام "]
[]
[]
[]
[null,null,null,1,2,3,4,5,6,7,8,9,10,11,12,13,14,15,16,17,18,19,20,21,22,23,24,25,26,27,28,29,30,31,32,61,62,63,33,34,35,36,37,38,39,40,41,42,43,44,45,46,47,48,49,50,51,52,53,54,55,56,57,58,59,60,64,65,66,67,68]
[]
["ت",null,"اسم الموظف","استقطاع (4) 10 مليون العمارة 9","استقطاع (4)10 مليون بلدروز ","استقطاع (4) 100 راتب البحيرة 311 ","استقطاع (4)100 راتب مقدادية ","استقطاع (4)30 مليون صلاح الدين","استقطاع (1) صندوق تربية","استقطاع 2 5 مليون فاروق","استقطاع (4)  10 مليون فاروق","استقطاع (4) 5 مليون بلدروز","استقطاع (4) الرشيد اشنونا سيارات ","استقطاع (4) سيارات  بعقوبة","استقطاع (4) لصناعة المواد الانشائية","استقطاع (4) نقابة المعلمين","استقطاع (4)5 مليون 14 بعقوبة","استقطاع 5 رعاية","استقطاع 6 رسم طابع ","استقطاع (4) 100 راتب 14 بعقوبة","استقطاع (4) اربعة مصرف الثقة","استقطاع(3)  مئة راتب فاروق","التامين مصرف 14 بعقوبة ","التامين مصرف الفاروق","استقطاع (4)الرافدين المحيط بغداد","المصرف الزراعي الخالص ","المصرف الزراعي المقدادية","المصرف الزراعي بعقوبة ","المصرف الزراعي هبهب","امانات متنوعة صندوق اسكان","ايراد نهائي","بدل ايجار","تامين البحيرة","تامين المقدادية","تامين صلاح الدين","تنفيذ كاظمية ","تنفيذ الرصافة","تنفيذ الحلة ","تنفيذ ابي صيدا","تنفيذ البياع ","تنفيذ الخالص ","تنفيذ الزهور","تنفيذ العزيزية","تنفيذ بعقوبة","تنفيذ بلدروز","تنفيذ خان بني سعد","توقيفات تقاعدية","استقطاع (4) رافدين 311 سيارات","استقطاع (4)سلفة زواج فاروق","سلفة متنوعة","استقطاع (4)شركة ديالى","ضريبة دخل","عقاري","استقطاع (4) قرض اسكان بلدروز","استقطاع (4)مصرف الرافدين العلوية","استقطاع 5 فرع الهندية","تنفيذ الدورة","تنفيذ كربلاء","استقطاع (4) 30 مليون فاروق","استقطاع (4) 5 مليون مصرف رافدين ","استقطاع (4) مديرية زراعة ديالى","استقطاع (4) 10 مليون مقدادية","استقطاع (4) رشيد شنونا 10 مليون","استقطاع (4)جامعة ديالى قسم الشؤون المالية ","استقطاع (4) فرع الاعظمية 10 مليون","استقطاع (4) 30 مليون المقدادية","استقطاع (4)المصرف العراقي للتجارة/ النجف الاشرف","استقطاع(4) سلفة زواج صندوق التربية ","تنفيذ جلولاء","استقطاع(4) 5مليون حذيفة بن اليمان","استقطاع(4)10 مليون رافدين 14"]
[10,null,"احمد حميد",null,null,null,null,null,611000,102395,null,null,null,null,null,null,409580,782685,null,445371,null,null,20833,null,null,null,null,620400,640400,130860,123000,null,null,null,null,null,null,null,null,null,null,null,null,1477890,null,176250,31736220,null,null,219731,null,11638116,1221750,null,null,null,null,null,null,null,null,null,null,null,null,null,null,null,null,null,null,null,null,null,null,null,null,null,null,{"$f":"SUMif","v":{"$error":"#NAME?"}}]
[14,null,"اسيل خليل",null,null,null,null,null,592000,307185,1228752,null,null,null,73250,null,null,790459,null,null,null,null,null,null,null,null,null,1176750,null,305052,null,null,null,null,null,null,null,null,null,null,null,null,null,489450,null,null,31958400,null,null,null,null,13371973,1335250]
[23,null,"اشواق رزوقي",null,null,null,null,null,518000,204790,409584,null,null,null,null,null,102395,585623,null,null,null,null,null,null,null,620000,null,234822,null,384420,250000,null,null,null,null,null,null,null,null,null,924483,null,null,553631,233000,null,23477500,null,null,null,null,5901735,1105500,null,null,null,null,null,null,null,null,null,192084]
[9,null,"امجد حميد",null,null,null,null,131329,634000,null,614376,null,null,null,null,null,null,798545,null,null,650000,721500,null,33750,null,null,null,1338100,null,127150,476041,null,null,null,6200,null,null,null,null,null,null,null,129060,1545570,null,null,32105200,null,null,231570,null,11510388,372000,null,null,null,null,null,null,null,null,null,null,null,null,null,null,104167]
[20,null,"بيداء فارس",null,null,null,null,null,599000,null,614376,null,null,null,null,null,null,849509,null,null,null,846204,39583,null,null,null,null,null,null,null,414004,null,null,null,null,null,null,null,null,null,null,null,null,103000,null,null,34874300,null,null,null,null,16344874,1724000,null,null,null,null,null,null,null,null,null,null,248800]
[7,null,"حسام الدين طه محسن",null,null,null,null,null,347000,null,null,null,null,null,null,null,null,411253,null,374111,null,null,null,17500,null,null,null,null,null,null,273468,null,null,null,null,null,null,null,null,null,null,null,null,206000,null,null,16612300,null,null,677100,null,4684272]
[19,null,"حسام رشيد",null,null,null,null,null,682000,102395,819168,null,null,null,null,null,204790,853214,null,null,null,329575,null,15417,null,null,null,null,877900,null,304253,null,null,null,null,null,null,null,309000,null,null,null,null,1970210,null,80200,34968300,null,104000,338000,null,12140261,713750,null,null,null,null,null,null,null,100000,null,null,null,204792,269166]
[15,null,"حسين صكبان ",204792,null,331000,null,null,668000,null,819168,null,null,null,null,null,null,857465,null,null,null,890742,null,41666,null,null,109225,1312600,null,327150,150002,81400,null,null,null,null,null,null,null,null,null,null,null,1833110,null,null,34618226,null,null,null,null,12537141,1291250,null,420000]
[25,null,"سلام إبراهيم",null,null,null,322448,null,633000,null,null,null,409639,null,null,null,null,812592,1000,null,null,null,null,null,null,null,null,null,1031325,null,100002,null,null,15000,null,null,null,null,null,null,null,null,null,null,null,null,32874173,null,null,100000,null,11090080,53000]
[12,null,"سهاد نبهان جلوب",null,null,null,null,null,504000,307185,819168,null,null,null,null,null,null,648871,null,null,null,null,null,null,null,null,null,null,null,null,1,null,null,null,null,null,null,null,null,null,null,null,null,757778,null,null,26562750,null,null,80725,null,9944918,744500,null,null,null,null,null,null,null,null,192084,null,null,null,null,null,null,null,308945]
[3,null,"شاكر علي ",null,null,null,null,null,546000,null,614376,null,null,null,null,null,102395,678024,null,null,null,null,null,null,null,null,null,null,null,null,225002,null,null,null,null,null,null,null,null,null,null,null,null,null,null,null,27539800,null,null,48000,null,10172728,301750]
[2,null,"طلبة عبد  جسام",null,null,null,null,null,485000,204790,409584,null,null,654000,null,null,192166,549493,null,267223,null,null,12500,null,null,null,null,null,null,null,311000,null,null,null,null,null,null,null,null,90000,226600,null,null,674140,null,null,22426000,520000,null,null,null,6351202,560000,null,null,null,null,null,null,null,null,null,null,null,null,null,null,null,110000]
[6,null,"عذراء علي عبد",null,null,407069,null,null,593000,null,null,null,null,null,null,null,null,737937,null,391926,null,419688,18333,18750,null,null,null,388400,null,145400,609450,null,19042,null,null,null,null,null,268697,null,67000,null,null,149170,null,157824,30283300,null,null,null,null,10330535,587000,133611,420000]
[1,null,"فاتن عبد العزيز ",null,null,null,445371,null,489000,null,null,null,409639,null,null,null,null,643393,null,null,null,400833,null,18750,null,null,null,null,null,127150,150011,null,null,2085,null,null,null,null,null,null,null,null,null,null,null,null,26130500,null,null,null,null,9983794,1334750]
[21,null,"قسمه حميد",null,null,null,null,null,577000,102395,204792,null,null,null,null,null,102395,694222,null,null,null,445371,null,20833,null,null,null,null,null,408750,154600,19000,null,null,null,null,null,null,null,null,20600,null,null,273620,null,null,28115550,1007000,null,null,null,9372202,1092500,null,null,null,null,null,410258]
[24,null,"ليلى علي حميد",null,null,null,null,null,567000,null,204792,null,436655,null,null,127580,null,747844,null,null,null,445371,null,20833,null,null,null,null,119320,326056,458104,null,null,null,null,288780,407610,null,null,null,null,null,null,1255595,null,null,30194800,null,null,null,null,12269591,880000,null,null,null,null,null,null,null,null,null,null,null,null,null,null,null,null,null,204792]
[26,null,"محمد تعبان محمد",null,null,null,null,null,610000,102395,409584,null,null,null,null,null,204790,764651,null,445371,null,null,20833,null,null,null,null,null,null,145400,932127,null,null,null,null,null,null,195700,null,null,123600,362450,null,1744530,null,null,31689250,340000,null,null,null,10439010,963000,null,519000,null,null,null,null,null,null,null,null,null,null,null,322675]
[17,null,"محمد خالد",null,204792,null,null,null,655000,null,614376,null,568958,null,null,null,102395,764507,null,445371,null,445371,20833,20833,204792,null,252227,520000,null,null,196001,null,null,null,null,null,null,null,null,null,128750,null,null,1097250,null,null,31289589,null,null,534701,null,9186999,983000,null,null,null,null,null,null,null,null,269166]
[22,null,"محمد عبد فليح",null,null,null,null,null,{"$f":"337000+83333","v":420333},null,614376,null,null,null,null,null,102395,374759,null,null,null,null,null,null,null,null,null,null,469075,null,189791,null,null,null,null,null,null,null,null,null,null,null,null,null,null,null,15118600,null,null,null,null,3233540,527500]
[16,null,"مصطفى كريم ",null,null,null,null,null,650000,409580,819168,null,409639,351012,null,null,null,787431,null,null,365000,400833,null,18750,null,null,null,890000,null,null,483596,49500,null,null,null,null,null,null,null,null,null,null,null,1618890,154500,623440,32151423,null,null,340000,100000,9224458,1065500,null,519000]
[11,null,"نضال إبراهيم",null,null,null,null,null,506000,null,614376,null,409639,null,null,null,null,612374,null,null,null,445371,null,20833,null,null,null,null,null,null,1107667,null,null,null,null,null,null,null,null,null,null,null,null,725670,null,null,24923600,null,null,60000,null,8319417,368000]
[5,null,"نورة علاء حسين",null,null,null,null,null,567000,null,819168,null,null,null,null,null,294561,721552,null,641344,510000,null,null,17500,null,null,null,null,null,145400,599002,null,null,null,null,null,null,null,null,null,null,null,null,179630,null,null,29553633,null,104000,103620,null,11201373,745500]
[18,null,"نوفل محمد إسماعيل",null,null,null,null,null,660000,null,409584,null,null,null,null,null,null,905600,null,null,null,1576613,null,73749,null,null,null,null,null,145400,314463,null,null,null,null,null,null,null,null,null,null,null,null,1870981,null,null,36831100,null,null,null,null,15421396,776500]
[8,null,"هشام محي رشيد",null,null,null,null,null,375000,204790,1023960,null,null,null,null,null,null,489274,null,null,null,null,null,null,null,null,null,null,null,97480,null,null,null,null,null,null,null,null,null,null,null,null,null,197300,null,null,19729800,null,null,232910,null,7850757,186000]
[4,null,"وسام فاضل",null,null,null,null,null,586000,409580,2252712,102396,null,180960,null,null,null,691029,null,null,225000,890742,null,41666,null,450175,null,1051650,null,127150,1164401,null,null,null,null,null,null,null,null,null,177910,100000,null,359660,null,null,27911116,192420,null,110593,null,9504096,1422500]
[13,null,"وسام احمد جواد",null,null,null,null,null,461000,null,null,null,null,376000,null,null,null,616817,null,1104517,510000,null,52499,null,null,null,null,null,null,null,281000,null,null,null,null,null,null,null,null,null,null,null,null,1337130,null,null,24672850,null,null,null,null,10308330,1065000]
[27]
[28]
[29]
[30]
[31]
[32]
[33]
[34]
[35]
[36]
[37]
[38]
[39]
[40]
[]
[]
[]
[]
[]
[]
[]
[]
[]
[]
[]
[]
[]
[]
[]
[]
[null,null,null,{"$f":"SUM(D9:D64)","v":204792},{"$f":"SUM(E9:E64)","v":204792},738069,767819,{"$f":"SUM(H9:H64)","v":131329},14535333,2457480,{"$f":"SUM(K9:K64)","v":14335440},{"$f":"SUM(L9:L64)","v":102396},{"$f":"SUM(M9:M64)","v":2644169},{"$f":"SUM(N9:N64)","v":1561972},{"$f":"SUM(O9:O64)","v":73250},{"$f":"SUM(P9:P64)","v":127580},{"$f":"SUM(Q9:Q64)","v":1817862},18169123,1000,4115234,2260000,8258214,185414,{"$f":"SUM(X9:X64)","v":380830},204792,1070175,361452,7532722,3138020,2942818,9266986,149900,19042,17085,6200,{"$f":"SUM(AJ9:AJ64)","v":288780},{"$f":"SUM(AK9:AK64)","v":407610},{"$f":"SUM(AL9:AL64)","v":195700},577697,90000,1668943,462450,129060,20420205,387500,1037714,738348280,2059420,208000,3076950,100000,262333186,21419500,133611,1878000,0,0,0,410258,0,100000,461250,192084,248800,{"$f":"SUM(BM9:BM64)","v":204792},269166,322675,104167,{"$f":"SUM(BQ9:BQ64)","v":110000},{"$f":"SUM(BR9:BR64)","v":308945},204792,0]
[]
[]
[]
[]
[]
[]
[]
[]
[null,null,null,null,null,null,null,null,null,2457480]

{"sheet":"ورقة264","index":1,"n_rows":222,"n_cols":110,"rows_kept":222,"cut":false,"hidden":false,"merged":[]}
[null,1,1]
[null,{"$f":"TRANSPOSE(J2:DF2)","v":"استقطاع (4) 10 مليون العمارة 9"},{"$f":"TRANSPOSE(J3:DF3)","v":204792},null,null,null,null,null,null,{"$f":"Salim!D8","v":"استقطاع (4) 10 مليون العمارة 9"},{"$f":"Salim!E8","v":"استقطاع (4)10 مليون بلدروز "},{"$f":"Salim!F8","v":"استقطاع (4) 100 راتب البحيرة 311 "},{"$f":"Salim!G8","v":"استقطاع (4)100 راتب مقدادية "},{"$f":"Salim!H8","v":"استقطاع (4)30 مليون صلاح الدين"},{"$f":"Salim!I8","v":"استقطاع (1) صندوق تربية"},{"$f":"Salim!J8","v":"استقطاع 2 5 مليون فاروق"},{"$f":"Salim!K8","v":"استقطاع (4)  10 مليون فاروق"},{"$f":"Salim!L8","v":"استقطاع (4) 5 مليون بلدروز"},{"$f":"Salim!M8","v":"استقطاع (4) الرشيد اشنونا سيارات "},{"$f":"Salim!N8","v":"استقطاع (4) سيارات  بعقوبة"},{"$f":"Salim!O8","v":"استقطاع (4) لصناعة المواد الانشائية"},{"$f":"Salim!P8","v":"استقطاع (4) نقابة المعلمين"},{"$f":"Salim!Q8","v":"استقطاع (4)5 مليون 14 بعقوبة"},{"$f":"Salim!R8","v":"استقطاع 5 رعاية"},{"$f":"Salim!S8","v":"استقطاع 6 رسم طابع "},{"$f":"Salim!T8","v":"استقطاع (4) 100 راتب 14 بعقوبة"},{"$f":"Salim!U8","v":"استقطاع (4) اربعة مصرف الثقة"},{"$f":"Salim!V8","v":"استقطاع(3)  مئة راتب فاروق"},{"$f":"Salim!W8","v":"التامين مصرف 14 بعقوبة "},{"$f":"Salim!X8","v":"التامين مصرف الفاروق"},{"$f":"Salim!Y8","v":"استقطاع (4)الرافدين المحيط بغداد"},{"$f":"Salim!Z8","v":"المصرف الزراعي الخالص "},{"$f":"Salim!AA8","v":"المصرف الزراعي المقدادية"},{"$f":"Salim!AB8","v":"المصرف الزراعي بعقوبة "},{"$f":"Salim!AC8","v":"المصرف الزراعي هبهب"},{"$f":"Salim!AD8","v":"امانات متنوعة صندوق اسكان"},{"$f":"Salim!AE8","v":"ايراد نهائي"},{"$f":"Salim!AF8","v":"بدل ايجار"},{"$f":"Salim!AG8","v":"تامين البحيرة"},{"$f":"Salim!AH8","v":"تامين المقدادية"},{"$f":"Salim!AI8","v":"تامين صلاح الدين"},{"$f":"Salim!AJ8","v":"تنفيذ كاظمية "},{"$f":"Salim!AK8","v":"تنفيذ الرصافة"},{"$f":"Salim!AL8","v":"تنفيذ الحلة "},{"$f":"Salim!AM8","v":"تنفيذ ابي صيدا"},{"$f":"Salim!AN8","v":"تنفيذ البياع "},{"$f":"Salim!AO8","v":"تنفيذ الخالص "},{"$f":"Salim!AP8","v":"تنفيذ الزهور"},{"$f":"Salim!AQ8","v":"تنفيذ العزيزية"},{"$f":"Salim!AR8","v":"تنفيذ بعقوبة"},{"$f":"Salim!AS8","v":"تنفيذ بلدروز"},{"$f":"Salim!AT8","v":"تنفيذ خان بني سعد"},{"$f":"Salim!AU8","v":"توقيفات تقاعدية"},{"$f":"Salim!AV8","v":"استقطاع (4) رافدين 311 سيارات"},{"$f":"Salim!AW8","v":"استقطاع (4)سلفة زواج فاروق"},{"$f":"Salim!AX8","v":"سلفة متنوعة"},{"$f":"Salim!AY8","v":"استقطاع (4)شركة ديالى"},{"$f":"Salim!AZ8","v":"ضريبة دخل"},{"$f":"Salim!BA8","v":"عقاري"},{"$f":"Salim!BB8","v":"استقطاع (4) قرض اسكان بلدروز"},{"$f":"Salim!BC8","v":"استقطاع (4)مصرف الرافدين العلوية"},{"$f":"Salim!BD8","v":"استقطاع 5 فرع الهندية"},{"$f":"Salim!BE8","v":"تنفيذ الدورة"},{"$f":"Salim!BF8","v":"تنفيذ كربلاء"},{"$f":"Salim!BG8","v":"استقطاع (4) 30 مليون فاروق"},{"$f":"Salim!BH8","v":"استقطاع (4) 5 مليون مصرف رافدين "},{"$f":"Salim!BI8","v":"استقطاع (4) مديرية زراعة ديالى"},{"$f":"Salim!BJ8","v":"استقطاع (4) 10 مليون مقدادية"},{"$f":"Salim!BK8","v":"استقطاع (4) رشيد شنونا 10 مليون"},{"$f":"Salim!BL8","v":"استقطاع (4)جامعة ديالى قسم الشؤون المالية "},{"$f":"Salim!BM8","v":"استقطاع (4) فرع الاعظمية 10 مليون"},{"$f":"Salim!BN8","v":"استقطاع (4) 30 مليون المقدادية"},{"$f":"Salim!BO8","v":"استقطاع (4)المصرف العراقي للتجارة/ النجف الاشرف"},{"$f":"Salim!BP8","v":"استقطاع(4) سلفة زواج صندوق التربية "},{"$f":"Salim!BQ8","v":"تنفيذ جلولاء"},{"$f":"Salim!BR8","v":"استقطاع(4) 5مليون حذيفة بن اليمان"},{"$f":"Salim!BS8","v":"استقطاع(4)10 مليون رافدين 14"},{"$f":"Salim!BT8","v":0},{"$f":"Salim!BU8","v":0},{"$f":"Salim!BV8","v":0},{"$f":"Salim!BW8","v":0},{"$f":"Salim!BX8","v":0},{"$f":"Salim!BY8","v":0},{"$f":"Salim!BZ8","v":0},{"$f":"Salim!CA8","v":0},{"$f":"Salim!CB8","v":0},{"$f":"Salim!CC8","v":0},{"$f":"Salim!CD8","v":0},{"$f":"Salim!CE8","v":0},{"$f":"Salim!CF8","v":0},{"$f":"Salim!CG8","v":0},{"$f":"Salim!CH8","v":0},{"$f":"Salim!CI8","v":0},{"$f":"Salim!CJ8","v":0},{"$f":"Salim!CK8","v":0},{"$f":"Salim!CL8","v":0},{"$f":"Salim!CM8","v":0},{"$f":"Salim!CN8","v":0},{"$f":"Salim!CO8","v":0},{"$f":"Salim!CP8","v":0},{"$f":"Salim!CQ8","v":0},{"$f":"Salim!CR8","v":0},{"$f":"Salim!CS8","v":0},{"$f":"Salim!CT8","v":0},{"$f":"Salim!CU8","v":0},{"$f":"Salim!CV8","v":0},{"$f":"Salim!CW8","v":0},{"$f":"Salim!CX8","v":0},{"$f":"Salim!CY8","v":0},{"$f":"Salim!CZ8","v":0}]
[null,"استقطاع (4)10 مليون بلدروز ",204792,null,null,null,null,null,null,{"$f":"Salim!D65","v":204792},{"$f":"Salim!E65","v":204792},{"$f":"Salim!F65","v":738069},{"$f":"Salim!G65","v":767819},{"$f":"Salim!H65","v":131329},{"$f":"Salim!I65","v":14535333},{"$f":"Salim!J65","v":2457480},{"$f":"Salim!K65","v":14335440},{"$f":"Salim!L65","v":102396},{"$f":"Salim!M65","v":2644169},{"$f":"Salim!N65","v":1561972},{"$f":"Salim!O65","v":73250},{"$f":"Salim!P65","v":127580},{"$f":"Salim!Q65","v":1817862},{"$f":"Salim!R65","v":18169123},{"$f":"Salim!S65","v":1000},{"$f":"Salim!T65","v":4115234},{"$f":"Salim!U65","v":2260000},{"$f":"Salim!V65","v":8258214},{"$f":"Salim!W65","v":185414},{"$f":"Salim!X65","v":380830},{"$f":"Salim!Y65","v":204792},{"$f":"Salim!Z65","v":1070175},{"$f":"Salim!AA65","v":361452},{"$f":"Salim!AB65","v":7532722},{"$f":"Salim!AC65","v":3138020},{"$f":"Salim!AD65","v":2942818},{"$f":"Salim!AE65","v":9266986},{"$f":"Salim!AF65","v":149900},{"$f":"Salim!AG65","v":19042},{"$f":"Salim!AH65","v":17085},{"$f":"Salim!AI65","v":6200},{"$f":"Salim!AJ65","v":288780},{"$f":"Salim!AK65","v":407610},{"$f":"Salim!AL65","v":195700},{"$f":"Salim!AM65","v":577697},{"$f":"Salim!AN65","v":90000},{"$f":"Salim!AO65","v":1668943},{"$f":"Salim!AP65","v":462450},{"$f":"Salim!AQ65","v":129060},{"$f":"Salim!AR65","v":20420205},{"$f":"Salim!AS65","v":387500},{"$f":"Salim!AT65","v":1037714},{"$f":"Salim!AU65","v":738348280},{"$f":"Salim!AV65","v":2059420},{"$f":"Salim!AW65","v":208000},{"$f":"Salim!AX65","v":3076950},{"$f":"Salim!AY65","v":100000},{"$f":"Salim!AZ65","v":262333186},{"$f":"Salim!BA65","v":21419500},{"$f":"Salim!BB65","v":133611},{"$f":"Salim!BC65","v":1878000},{"$f":"Salim!BD65","v":0},{"$f":"Salim!BE65","v":0},{"$f":"Salim!BF65","v":0},{"$f":"Salim!BG65","v":410258},{"$f":"Salim!BH65","v":0},{"$f":"Salim!BI65","v":100000},{"$f":"Salim!BJ65","v":461250},{"$f":"Salim!BK65","v":192084},{"$f":"Salim!BL65","v":248800},{"$f":"Salim!BM65","v":204792},{"$f":"Salim!BN65","v":269166},{"$f":"Salim!BO65","v":322675},{"$f":"Salim!BP65","v":104167},{"$f":"Salim!BQ65","v":110000},{"$f":"Salim!BR65","v":308945},{"$f":"Salim!BS65","v":204792},{"$f":"Salim!BT65","v":0},{"$f":"Salim!BU65","v":0},{"$f":"Salim!BV65","v":0},{"$f":"Salim!BW65","v":0},{"$f":"Salim!BX65","v":0},{"$f":"Salim!BY65","v":0},{"$f":"Salim!BZ65","v":0},{"$f":"Salim!CA65","v":0},{"$f":"Salim!CB65","v":0},{"$f":"Salim!CC65","v":0},{"$f":"Salim!CD65","v":0},{"$f":"Salim!CE65","v":0},{"$f":"Salim!CF65","v":0},{"$f":"Salim!CG65","v":0},{"$f":"Salim!CH65","v":0},{"$f":"Salim!CI65","v":0},{"$f":"Salim!CJ65","v":0},{"$f":"Salim!CK65","v":0},{"$f":"Salim!CL65","v":0},{"$f":"Salim!CM65","v":0},{"$f":"Salim!CN65","v":0},{"$f":"Salim!CO65","v":0},{"$f":"Salim!CP65","v":0},{"$f":"Salim!CQ65","v":0},{"$f":"Salim!CR65","v":0},{"$f":"Salim!CS65","v":0},{"$f":"Salim!CT65","v":0},{"$f":"Salim!CU65","v":0},{"$f":"Salim!CV65","v":0},{"$f":"Salim!CW65","v":0},{"$f":"Salim!CX65","v":0},{"$f":"Salim!CY65","v":0},{"$f":"Salim!CZ65","v":0}]
[null,"استقطاع (4) 100 راتب البحيرة 311 ",738069]
[null,"استقطاع (4)100 راتب مقدادية ",767819]
[null,"استقطاع (4)30 مليون صلاح الدين",131329]
[null,"استقطاع (1) صندوق تربية",14535333]
[null,"استقطاع 2 5 مليون فاروق",2457480]
[null,"استقطاع (4)  10 مليون فاروق",14335440]
[null,"استقطاع (4) 5 مليون بلدروز",102396]
[null,"استقطاع (4) الرشيد اشنونا سيارات ",2644169]
[null,"استقطاع (4) سيارات  بعقوبة",1561972]
[null,"استقطاع (4) لصناعة المواد الانشائية",73250]
[null,"استقطاع (4) نقابة المعلمين",127580]
[null,"استقطاع (4)5 مليون 14 بعقوبة",1817862]
[null,"استقطاع 5 رعاية",18169123]
[null,"استقطاع 6 رسم طابع ",1000]
[null,"استقطاع (4) 100 راتب 14 بعقوبة",4115234]
[null,"استقطاع (4) اربعة مصرف الثقة",2260000]
[null,"استقطاع(3)  مئة راتب فاروق",8258214]
[null,"التامين مصرف 14 بعقوبة ",185414]
[null,"التامين مصرف الفاروق",380830]
[null,"استقطاع (4)الرافدين المحيط بغداد",204792]
[null,"المصرف الزراعي الخالص ",1070175]
[null,"المصرف الزراعي المقدادية",361452]
[null,"المصرف الزراعي بعقوبة ",7532722]
[null,"المصرف الزراعي هبهب",3138020]
[null,"امانات متنوعة صندوق اسكان",2942818]
[null,"ايراد نهائي",9266986]
[null,"بدل ايجار",149900]
[null,"تامين البحيرة",19042]
[null,"تامين المقدادية",17085]
[null,"تامين صلاح الدين",6200]
[null,"تنفيذ كاظمية ",288780]
[null,"تنفيذ الرصافة",407610]
[null,"تنفيذ الحلة ",195700]
[null,"تنفيذ ابي صيدا",577697]
[null,"تنفيذ البياع ",90000]
[null,"تنفيذ الخالص ",1668943]
[null,"تنفيذ الزهور",462450]
[null,"تنفيذ العزيزية",129060]
[null,"تنفيذ بعقوبة",20420205]
[null,"تنفيذ بلدروز",387500]
[null,"تنفيذ خان بني سعد",1037714]
[null,"توقيفات تقاعدية",738348280]
[null,"استقطاع (4) رافدين 311 سيارات",2059420]
[null,"استقطاع (4)سلفة زواج فاروق",208000]
[null,"سلفة متنوعة",3076950]
[null,"استقطاع (4)شركة ديالى",100000]
[null,"ضريبة دخل",262333186]
[null,"عقاري",21419500]
[null,"استقطاع (4) قرض اسكان بلدروز",133611]
[null,"استقطاع (4)مصرف الرافدين العلوية",1878000]
[null,"استقطاع 5 فرع الهندية",0]
[null,"تنفيذ الدورة",0]
[null,"تنفيذ كربلاء",0]
[null,"استقطاع (4) 30 مليون فاروق",410258]
[null,"استقطاع (4) 5 مليون مصرف رافدين ",0]
[null,"استقطاع (4) مديرية زراعة ديالى",100000]
[null,"استقطاع (4) 10 مليون مقدادية",461250]
[null,"استقطاع (4) رشيد شنونا 10 مليون",192084]
[null,"استقطاع (4)جامعة ديالى قسم الشؤون المالية ",248800]
[null,"استقطاع (4) فرع الاعظمية 10 مليون",204792]
[null,"استقطاع (4) 30 مليون المقدادية",269166]
[null,"استقطاع (4)المصرف العراقي للتجارة/ النجف الاشرف",322675]
[null,"استقطاع(4) سلفة زواج صندوق التربية ",104167]
[null,"تنفيذ جلولاء",110000]
[null,"استقطاع(4) 5مليون حذيفة بن اليمان",308945]
[null,"استقطاع(4)10 مليون رافدين 14",204792]
[null,0,0]
[null,0,0]
[null,0,0]
[null,0]
[null,0]
[null,0]
[null,0]
[null,0]
[null,0]
[null,0]
[null,0]
[null,0]
[null,0]
[null,0]
[null,0]
[null,0]
[null,0]
[null,0]
[null,0]
[null,0]
[null,0]
[null,0]
[null,0]
[null,0]
[null,0]
[null,0]
[null,0]
[null,0]
[null,0]
[null,0]
[null,0]
[null,0]
[null,0]
[null,{"$error":"#N/A"}]
[null,{"$error":"#N/A"}]
[null,{"$error":"#N/A"}]
[null,{"$error":"#N/A"}]
[null,{"$error":"#N/A"}]
[null,{"$error":"#N/A"}]
[null,{"$error":"#N/A"}]
[null,{"$error":"#N/A"}]
[null,{"$error":"#N/A"}]
[null,{"$error":"#N/A"}]
[null,{"$error":"#N/A"}]
[null,{"$error":"#N/A"}]
[null,{"$error":"#N/A"}]
[null,{"$error":"#N/A"}]
[null,{"$error":"#N/A"}]
[null,{"$error":"#N/A"}]
[null,{"$error":"#N/A"}]
[null,{"$error":"#N/A"}]
[null,{"$error":"#N/A"}]
[null,{"$error":"#N/A"}]
[null,{"$error":"#N/A"}]
[null,{"$error":"#N/A"}]
[null,{"$error":"#N/A"}]
[null,{"$error":"#N/A"}]
[null,{"$error":"#N/A"}]
[null,{"$error":"#N/A"}]
[null,{"$error":"#N/A"}]
[null,{"$error":"#N/A"}]
[null,{"$error":"#N/A"}]
[null,{"$error":"#N/A"}]
[null,{"$error":"#N/A"}]
[null,{"$error":"#N/A"}]
[null,{"$error":"#N/A"}]
[null,{"$error":"#N/A"}]
[null,{"$error":"#N/A"}]
[null,{"$error":"#N/A"}]
[null,{"$error":"#N/A"}]
[null,{"$error":"#N/A"}]
[null,{"$error":"#N/A"}]
[null,{"$error":"#N/A"}]
[null,{"$error":"#N/A"}]
[null,{"$error":"#N/A"}]
[null,{"$error":"#N/A"}]
[null,{"$error":"#N/A"}]
[null,{"$error":"#N/A"}]
[null,{"$error":"#N/A"}]
[null,{"$error":"#N/A"}]
[null,{"$error":"#N/A"}]
[null,{"$error":"#N/A"}]
[null,{"$error":"#N/A"}]
[null,{"$error":"#N/A"}]
[null,{"$error":"#N/A"}]
[null,{"$error":"#N/A"}]
[null,{"$error":"#N/A"}]
[null,{"$error":"#N/A"}]
[null,{"$error":"#N/A"}]
[null,{"$error":"#N/A"}]
[null,{"$error":"#N/A"}]
[null,{"$error":"#N/A"}]
[null,{"$error":"#N/A"}]
[null,{"$error":"#N/A"}]
[null,{"$error":"#N/A"}]
[null,{"$error":"#N/A"}]
[null,{"$error":"#N/A"}]
[null,{"$error":"#N/A"}]
[null,{"$error":"#N/A"}]
[null,{"$error":"#N/A"}]
[null,{"$error":"#N/A"}]
[null,{"$error":"#N/A"}]
[null,{"$error":"#N/A"}]
[null,{"$error":"#N/A"}]
[null,{"$error":"#N/A"}]
[null,{"$error":"#N/A"}]
[null,{"$error":"#N/A"}]
[null,{"$error":"#N/A"}]
[null,{"$error":"#N/A"}]
[null,{"$error":"#N/A"}]
[null,{"$error":"#N/A"}]
[null,{"$error":"#N/A"}]
[null,{"$error":"#N/A"}]
[null,{"$error":"#N/A"}]
[null,{"$error":"#N/A"}]
[null,{"$error":"#N/A"}]
[null,{"$error":"#N/A"}]
[null,{"$error":"#N/A"}]
[null,{"$error":"#N/A"}]
[null,{"$error":"#N/A"}]
[null,{"$error":"#N/A"}]
[null,{"$error":"#N/A"}]
[null,{"$error":"#N/A"}]
[null,{"$error":"#N/A"}]
[null,{"$error":"#N/A"}]
[null,{"$error":"#N/A"}]
[null,{"$error":"#N/A"}]
[null,{"$error":"#N/A"}]
[null,{"$error":"#N/A"}]
[null,{"$error":"#N/A"}]
[null,{"$error":"#N/A"}]
[null,{"$error":"#N/A"}]
[null,{"$error":"#N/A"}]
[null,{"$error":"#N/A"}]
[null,{"$error":"#N/A"}]
[null,{"$error":"#N/A"}]
[null,{"$error":"#N/A"}]
[null,{"$error":"#N/A"}]
[null,{"$error":"#N/A"}]
[null,{"$error":"#N/A"}]
[null,{"$error":"#N/A"}]
[null,{"$error":"#N/A"}]
[null,{"$error":"#N/A"}]
[null,{"$error":"#N/A"}]
[null,{"$error":"#N/A"}]
[null,{"$error":"#N/A"}]
[null,{"$error":"#N/A"}]
[null,{"$error":"#N/A"}]
[null,{"$error":"#N/A"}]
[null,{"$error":"#N/A"}]
[null,{"$error":"#N/A"}]
[null,{"$error":"#N/A"}]
[null,null,{"$f":"SUBTOTAL(9,C1:C221)","v":36495457},36795457,{"$f":"C222-D222","v":-300000}]

{"sheet":"استقطاع (4) 10 مليون العمارة 9","index":2,"n_rows":4,"n_cols":5,"rows_kept":4,"cut":false,"hidden":false,"merged":[]}
[]
["ت","اسم الموظف","استقطاع (4) 10 مليون العمارة 9",null,"Goto SALIM"]
[1,"حسين صكبان ",204792]
[null,"المجموع",204792]

{"sheet":"استقطاع (4)10 مليون بلدروز ","index":3,"n_rows":4,"n_cols":5,"rows_kept":4,"cut":false,"hidden":false,"merged":[]}
[]
["ت","اسم الموظف","استقطاع (4)10 مليون بلدروز ",null,"Goto SALIM"]
[1,"محمد خالد",204792]
[null,"المجموع",204792]

{"sheet":"استقطاع (4) 100 راتب البحيرة 3","index":4,"n_rows":5,"n_cols":5,"rows_kept":5,"cut":false,"hidden":false,"merged":[]}
[]
["ت","اسم الموظف","استقطاع (4) 100 راتب البحيرة 311 ",null,"Goto SALIM"]
[1,"حسين صكبان ",331000]
[2,"عذراء علي عبد",407069]
[null,"المجموع",738069]

{"sheet":"استقطاع (4)100 راتب مقدادية ","index":5,"n_rows":5,"n_cols":5,"rows_kept":5,"cut":false,"hidden":false,"merged":[]}
[]
["ت","اسم الموظف","استقطاع (4)100 راتب مقدادية ",null,"Goto SALIM"]
[1,"سلام إبراهيم",322448]
[2,"فاتن عبد العزيز ",445371]
[null,"المجموع",767819]

{"sheet":"استقطاع (4)30 مليون صلاح الدين","index":6,"n_rows":4,"n_cols":5,"rows_kept":4,"cut":false,"hidden":false,"merged":[]}
[]
["ت","اسم الموظف","استقطاع (4)30 مليون صلاح الدين",null,"Goto SALIM"]
[1,"امجد حميد",131329]
[null,"المجموع",131329]

{"sheet":"استقطاع (1) صندوق تربية","index":7,"n_rows":29,"n_cols":5,"rows_kept":29,"cut":false,"hidden":false,"merged":[]}
[]
["ت","اسم الموظف","استقطاع (1) صندوق تربية",null,"Goto SALIM"]
[1,"احمد حميد",611000]
[2,"اسيل خليل",592000]
[3,"اشواق رزوقي",518000]
[4,"امجد حميد",634000]
[5,"بيداء فارس",599000]
[6,"حسام الدين طه محسن",347000]
[7,"حسام رشيد",682000]
[8,"حسين صكبان ",668000]
[9,"سلام إبراهيم",633000]
[10,"سهاد نبهان جلوب",504000]
[11,"شاكر علي ",546000]
[12,"طلبة عبد  جسام",485000]
[13,"عذراء علي عبد",593000]
[14,"فاتن عبد العزيز ",489000]
[15,"قسمه حميد",577000]
[16,"ليلى علي حميد",567000]
[17,"محمد تعبان محمد",610000]
[18,"محمد خالد",655000]
[19,"محمد عبد فليح",{"$f":"337000+83333","v":420333}]
[20,"مصطفى كريم ",650000]
[21,"نضال إبراهيم",506000]
[22,"نورة علاء حسين",567000]
[23,"نوفل محمد إسماعيل",660000]
[24,"هشام محي رشيد",375000]
[25,"وسام فاضل",586000]
[26,"وسام احمد جواد",461000]
[null,"المجموع",14535333]

{"sheet":"استقطاع 2 5 مليون فاروق","index":8,"n_rows":14,"n_cols":5,"rows_kept":14,"cut":false,"hidden":false,"merged":[]}
[]
["ت","اسم الموظف","استقطاع 2 5 مليون فاروق",null,"Goto SALIM"]
[1,"احمد حميد",102395]
[2,"اسيل خليل",307185]
[3,"اشواق رزوقي",204790]
[4,"حسام رشيد",102395]
[5,"سهاد نبهان جلوب",307185]
[6,"طلبة عبد  جسام",204790]
[7,"قسمه حميد",102395]
[8,"محمد تعبان محمد",102395]
[9,"مصطفى كريم ",409580]
[10,"هشام محي رشيد",204790]
[11,"وسام فاضل",409580]
[null,"المجموع",2457480]

{"sheet":"استقطاع (4)  10 مليون فاروق","index":9,"n_rows":23,"n_cols":5,"rows_kept":23,"cut":false,"hidden":false,"merged":[]}
[]
["ت","اسم الموظف","استقطاع (4)  10 مليون فاروق",null,"Goto SALIM"]
[1,"اسيل خليل",1228752]
[2,"اشواق رزوقي",409584]
[3,"امجد حميد",614376]
[4,"بيداء فارس",614376]
[5,"حسام رشيد",819168]
[6,"حسين صكبان ",819168]
[7,"سهاد نبهان جلوب",819168]
[8,"شاكر علي ",614376]
[9,"طلبة عبد  جسام",409584]
[10,"قسمه حميد",204792]
[11,"ليلى علي حميد",204792]
[12,"محمد تعبان محمد",409584]
[13,"محمد خالد",614376]
[14,"محمد عبد فليح",614376]
[15,"مصطفى كريم ",819168]
[16,"نضال إبراهيم",614376]
[17,"نورة علاء حسين",819168]
[18,"نوفل محمد إسماعيل",409584]
[19,"هشام محي رشيد",1023960]
[20,"وسام فاضل",2252712]
[null,"المجموع",14335440]

{"sheet":"استقطاع (4) 5 مليون بلدروز","index":10,"n_rows":4,"n_cols":5,"rows_kept":4,"cut":false,"hidden":false,"merged":[]}
[]
["ت","اسم الموظف","استقطاع (4) 5 مليون بلدروز",null,"Goto SALIM"]
[1,"وسام فاضل",102396]
[null,"المجموع",102396]

{"sheet":"استقطاع (4) الرشيد اشنونا سيار","index":11,"n_rows":9,"n_cols":5,"rows_kept":9,"cut":false,"hidden":false,"merged":[]}
[]
["ت","اسم الموظف","استقطاع (4) الرشيد اشنونا سيارات ",null,"Goto SALIM"]
[1,"سلام إبراهيم",409639]
[2,"فاتن عبد العزيز ",409639]
[3,"ليلى علي حميد",436655]
[4,"محمد خالد",568958]
[5,"مصطفى كريم ",409639]
[6,"نضال إبراهيم",409639]
[null,"المجموع",2644169]

{"sheet":"استقطاع (4) سيارات  بعقوبة","index":12,"n_rows":7,"n_cols":5,"rows_kept":7,"cut":false,"hidden":false,"merged":[]}
[]
["ت","اسم الموظف","استقطاع (4) سيارات  بعقوبة",null,"Goto SALIM"]
[1,"طلبة عبد  جسام",654000]
[2,"مصطفى كريم ",351012]
[3,"وسام فاضل",180960]
[4,"وسام احمد جواد",376000]
[null,"المجموع",1561972]

{"sheet":"استقطاع (4) لصناعة المواد الان","index":13,"n_rows":4,"n_cols":5,"rows_kept":4,"cut":false,"hidden":false,"merged":[]}
[]
["ت","اسم الموظف","استقطاع (4) لصناعة المواد الانشائية",null,"Goto SALIM"]
[1,"اسيل خليل",73250]
[null,"المجموع",73250]

{"sheet":"استقطاع (4) نقابة المعلمين","index":14,"n_rows":4,"n_cols":5,"rows_kept":4,"cut":false,"hidden":false,"merged":[]}
[]
["ت","اسم الموظف","استقطاع (4) نقابة المعلمين",null,"Goto SALIM"]
[1,"ليلى علي حميد",127580]
[null,"المجموع",127580]

{"sheet":"استقطاع (4)5 مليون 14 بعقوبة","index":15,"n_rows":13,"n_cols":5,"rows_kept":13,"cut":false,"hidden":false,"merged":[]}
[]
["ت","اسم الموظف","استقطاع (4)5 مليون 14 بعقوبة",null,"Goto SALIM"]
[1,"احمد حميد",409580]
[2,"اشواق رزوقي",102395]
[3,"حسام رشيد",204790]
[4,"شاكر علي ",102395]
[5,"طلبة عبد  جسام",192166]
[6,"قسمه حميد",102395]
[7,"محمد تعبان محمد",204790]
[8,"محمد خالد",102395]
[9,"محمد عبد فليح",102395]
[10,"نورة علاء حسين",294561]
[null,"المجموع",1817862]

{"sheet":"استقطاع 5 رعاية","index":16,"n_rows":29,"n_cols":5,"rows_kept":29,"cut":false,"hidden":false,"merged":[]}
[]
["ت","اسم الموظف","استقطاع 5 رعاية",null,"Goto SALIM"]
[1,"احمد حميد",782685]
[2,"اسيل خليل",790459]
[3,"اشواق رزوقي",585623]
[4,"امجد حميد",798545]
[5,"بيداء فارس",849509]
[6,"حسام الدين طه محسن",411253]
[7,"حسام رشيد",853214]
[8,"حسين صكبان ",857465]
[9,"سلام إبراهيم",812592]
[10,"سهاد نبهان جلوب",648871]
[11,"شاكر علي ",678024]
[12,"طلبة عبد  جسام",549493]
[13,"عذراء علي عبد",737937]
[14,"فاتن عبد العزيز ",643393]
[15,"قسمه حميد",694222]
[16,"ليلى علي حميد",747844]
[17,"محمد تعبان محمد",764651]
[18,"محمد خالد",764507]
[19,"محمد عبد فليح",374759]
[20,"مصطفى كريم ",787431]
[21,"نضال إبراهيم",612374]
[22,"نورة علاء حسين",721552]
[23,"نوفل محمد إسماعيل",905600]
[24,"هشام محي رشيد",489274]
[25,"وسام فاضل",691029]
[26,"وسام احمد جواد",616817]
[null,"المجموع",18169123]

{"sheet":"استقطاع 6 رسم طابع ","index":17,"n_rows":4,"n_cols":5,"rows_kept":4,"cut":false,"hidden":false,"merged":[]}
[]
["ت","اسم الموظف","استقطاع 6 رسم طابع ",null,"Goto SALIM"]
[1,"سلام إبراهيم",1000]
[null,"المجموع",1000]

{"sheet":"استقطاع (4) 100 راتب 14 بعقوبة","index":18,"n_rows":11,"n_cols":5,"rows_kept":11,"cut":false,"hidden":false,"merged":[]}
[]
["ت","اسم الموظف","استقطاع (4) 100 راتب 14 بعقوبة",null,"Goto SALIM"]
[1,"احمد حميد",445371]
[2,"حسام الدين طه محسن",374111]
[3,"طلبة عبد  جسام",267223]
[4,"عذراء علي عبد",391926]
[5,"محمد تعبان محمد",445371]
[6,"محمد خالد",445371]
[7,"نورة علاء حسين",641344]
[8,"وسام احمد جواد",1104517]
[null,"المجموع",4115234]

{"sheet":"استقطاع (4) اربعة مصرف الثقة","index":19,"n_rows":8,"n_cols":5,"rows_kept":8,"cut":false,"hidden":false,"merged":[]}
[]
["ت","اسم الموظف","استقطاع (4) اربعة مصرف الثقة",null,"Goto SALIM"]
[1,"امجد حميد",650000]
[2,"مصطفى كريم ",365000]
[3,"نورة علاء حسين",510000]
[4,"وسام فاضل",225000]
[5,"وسام احمد جواد",510000]
[null,"المجموع",2260000]

{"sheet":"استقطاع(3)  مئة راتب فاروق","index":20,"n_rows":16,"n_cols":5,"rows_kept":16,"cut":false,"hidden":false,"merged":[]}
[]
["ت","اسم الموظف","استقطاع(3)  مئة راتب فاروق",null,"Goto SALIM"]
[1,"امجد حميد",721500]
[2,"بيداء فارس",846204]
[3,"حسام رشيد",329575]
[4,"حسين صكبان ",890742]
[5,"عذراء علي عبد",419688]
[6,"فاتن عبد العزيز ",400833]
[7,"قسمه حميد",445371]
[8,"ليلى علي حميد",445371]
[9,"محمد خالد",445371]
[10,"مصطفى كريم ",400833]
[11,"نضال إبراهيم",445371]
[12,"نوفل محمد إسماعيل",1576613]
[13,"وسام فاضل",890742]
[null,"المجموع",8258214]

{"sheet":"التامين مصرف 14 بعقوبة ","index":21,"n_rows":10,"n_cols":5,"rows_kept":10,"cut":false,"hidden":false,"merged":[]}
[]
["ت","اسم الموظف","التامين مصرف 14 بعقوبة ",null,"Goto SALIM"]
[1,"احمد حميد",20833]
[2,"بيداء فارس",39583]
[3,"طلبة عبد  جسام",12500]
[4,"عذراء علي عبد",18333]
[5,"محمد تعبان محمد",20833]
[6,"محمد خالد",20833]
[7,"وسام احمد جواد",52499]
[null,"المجموع",185414]

{"sheet":"التامين مصرف الفاروق","index":22,"n_rows":17,"n_cols":5,"rows_kept":17,"cut":false,"hidden":false,"merged":[]}
[]
["ت","اسم الموظف","التامين مصرف الفاروق",null,"Goto SALIM"]
[1,"امجد حميد",33750]
[2,"حسام الدين طه محسن",17500]
[3,"حسام رشيد",15417]
[4,"حسين صكبان ",41666]
[5,"عذراء علي عبد",18750]
[6,"فاتن عبد العزيز ",18750]
[7,"قسمه حميد",20833]
[8,"ليلى علي حميد",20833]
[9,"محمد خالد",20833]
[10,"مصطفى كريم ",18750]
[11,"نضال إبراهيم",20833]
[12,"نورة علاء حسين",17500]
[13,"نوفل محمد إسماعيل",73749]
[14,"وسام فاضل",41666]
[null,"المجموع",380830]

{"sheet":"استقطاع (4)الرافدين المحيط بغد","index":23,"n_rows":4,"n_cols":5,"rows_kept":4,"cut":false,"hidden":false,"merged":[]}
[]
["ت","اسم الموظف","استقطاع (4)الرافدين المحيط بغداد",null,"Goto SALIM"]
[1,"محمد خالد",204792]
[null,"المجموع",204792]

{"sheet":"المصرف الزراعي الخالص ","index":24,"n_rows":5,"n_cols":5,"rows_kept":5,"cut":false,"hidden":false,"merged":[]}
[]
["ت","اسم الموظف","المصرف الزراعي الخالص ",null,"Goto SALIM"]
[1,"اشواق رزوقي",620000]
[2,"وسام فاضل",450175]
[null,"المجموع",1070175]

{"sheet":"المصرف الزراعي المقدادية","index":25,"n_rows":5,"n_cols":5,"rows_kept":5,"cut":false,"hidden":false,"merged":[]}
[]
["ت","اسم الموظف","المصرف الزراعي المقدادية",null,"Goto SALIM"]
[1,"حسين صكبان ",109225]
[2,"محمد خالد",252227]
[null,"المجموع",361452]

{"sheet":"المصرف الزراعي بعقوبة ","index":26,"n_rows":12,"n_cols":5,"rows_kept":12,"cut":false,"hidden":false,"merged":[]}
[]
["ت","اسم الموظف","المصرف الزراعي بعقوبة ",null,"Goto SALIM"]
[1,"احمد حميد",620400]
[2,"اسيل خليل",1176750]
[3,"اشواق رزوقي",234822]
[4,"امجد حميد",1338100]
[5,"حسين صكبان ",1312600]
[6,"عذراء علي عبد",388400]
[7,"محمد خالد",520000]
[8,"مصطفى كريم ",890000]
[9,"وسام فاضل",1051650]
[null,"المجموع",7532722]

{"sheet":"المصرف الزراعي هبهب","index":27,"n_rows":8,"n_cols":5,"rows_kept":8,"cut":false,"hidden":false,"merged":[]}
[]
["ت","اسم الموظف","المصرف الزراعي هبهب",null,"Goto SALIM"]
[1,"احمد حميد",640400]
[2,"حسام رشيد",877900]
[3,"سلام إبراهيم",1031325]
[4,"ليلى علي حميد",119320]
[5,"محمد عبد فليح",469075]
[null,"المجموع",3138020]

{"sheet":"امانات متنوعة صندوق اسكان","index":28,"n_rows":17,"n_cols":5,"rows_kept":17,"cut":false,"hidden":false,"merged":[]}
[]
["ت","اسم الموظف","امانات متنوعة صندوق اسكان",null,"Goto SALIM"]
[1,"احمد حميد",130860]
[2,"اسيل خليل",305052]
[3,"اشواق رزوقي",384420]
[4,"امجد حميد",127150]
[5,"حسين صكبان ",327150]
[6,"عذراء علي عبد",145400]
[7,"فاتن عبد العزيز ",127150]
[8,"قسمه حميد",408750]
[9,"ليلى علي حميد",326056]
[10,"محمد تعبان محمد",145400]
[11,"نورة علاء حسين",145400]
[12,"نوفل محمد إسماعيل",145400]
[13,"هشام محي رشيد",97480]
[14,"وسام فاضل",127150]
[null,"المجموع",2942818]

{"sheet":"ايراد نهائي","index":29,"n_rows":27,"n_cols":5,"rows_kept":27,"cut":false,"hidden":false,"merged":[]}
[]
["ت","اسم الموظف","ايراد نهائي",null,"Goto SALIM"]
[1,"احمد حميد",123000]
[2,"اشواق رزوقي",250000]
[3,"امجد حميد",476041]
[4,"بيداء فارس",414004]
[5,"حسام الدين طه محسن",273468]
[6,"حسام رشيد",304253]
[7,"حسين صكبان ",150002]
[8,"سلام إبراهيم",100002]
[9,"سهاد نبهان جلوب",1]
[10,"شاكر علي ",225002]
[11,"طلبة عبد  جسام",311000]
[12,"عذراء علي عبد",609450]
[13,"فاتن عبد العزيز ",150011]
[14,"قسمه حميد",154600]
[15,"ليلى علي حميد",458104]
[16,"محمد تعبان محمد",932127]
[17,"محمد خالد",196001]
[18,"محمد عبد فليح",189791]
[19,"مصطفى كريم ",483596]
[20,"نضال إبراهيم",1107667]
[21,"نورة علاء حسين",599002]
[22,"نوفل محمد إسماعيل",314463]
[23,"وسام فاضل",1164401]
[24,"وسام احمد جواد",281000]
[null,"المجموع",9266986]

{"sheet":"بدل ايجار","index":30,"n_rows":6,"n_cols":5,"rows_kept":6,"cut":false,"hidden":false,"merged":[]}
[]
["ت","اسم الموظف","بدل ايجار",null,"Goto SALIM"]
[1,"حسين صكبان ",81400]
[2,"قسمه حميد",19000]
[3,"مصطفى كريم ",49500]
[null,"المجموع",149900]

{"sheet":"تامين البحيرة","index":31,"n_rows":4,"n_cols":5,"rows_kept":4,"cut":false,"hidden":false,"merged":[]}
[]
["ت","اسم الموظف","تامين البحيرة",null,"Goto SALIM"]
[1,"عذراء علي عبد",19042]
[null,"المجموع",19042]

{"sheet":"تامين المقدادية","index":32,"n_rows":5,"n_cols":5,"rows_kept":5,"cut":false,"hidden":false,"merged":[]}
[]
["ت","اسم الموظف","تامين المقدادية",null,"Goto SALIM"]
[1,"سلام إبراهيم",15000]
[2,"فاتن عبد العزيز ",2085]
[null,"المجموع",17085]

{"sheet":"تامين صلاح الدين","index":33,"n_rows":4,"n_cols":5,"rows_kept":4,"cut":false,"hidden":false,"merged":[]}
[]
["ت","اسم الموظف","تامين صلاح الدين",null,"Goto SALIM"]
[1,"امجد حميد",6200]
[null,"المجموع",6200]

{"sheet":"تنفيذ كاظمية ","index":34,"n_rows":4,"n_cols":5,"rows_kept":4,"cut":false,"hidden":false,"merged":[]}
[]
["ت","اسم الموظف","تنفيذ كاظمية ",null,"Goto SALIM"]
[1,"ليلى علي حميد",288780]
[null,"المجموع",288780]

{"sheet":"تنفيذ الرصافة","index":35,"n_rows":4,"n_cols":5,"rows_kept":4,"cut":false,"hidden":false,"merged":[]}
[]
["ت","اسم الموظف","تنفيذ الرصافة",null,"Goto SALIM"]
[1,"ليلى علي حميد",407610]
[null,"المجموع",407610]

{"sheet":"تنفيذ الحلة ","index":36,"n_rows":4,"n_cols":5,"rows_kept":4,"cut":false,"hidden":false,"merged":[]}
[]
["ت","اسم الموظف","تنفيذ الحلة ",null,"Goto SALIM"]
[1,"محمد تعبان محمد",195700]
[null,"المجموع",195700]

{"sheet":"تنفيذ ابي صيدا","index":37,"n_rows":5,"n_cols":5,"rows_kept":5,"cut":false,"hidden":false,"merged":[]}
[]
["ت","اسم الموظف","تنفيذ ابي صيدا",null,"Goto SALIM"]
[1,"حسام رشيد",309000]
[2,"عذراء علي عبد",268697]
[null,"المجموع",577697]

{"sheet":"تنفيذ البياع ","index":38,"n_rows":4,"n_cols":5,"rows_kept":4,"cut":false,"hidden":false,"merged":[]}
[]
["ت","اسم الموظف","تنفيذ البياع ",null,"Goto SALIM"]
[1,"طلبة عبد  جسام",90000]
[null,"المجموع",90000]

{"sheet":"تنفيذ الخالص ","index":39,"n_rows":10,"n_cols":5,"rows_kept":10,"cut":false,"hidden":false,"merged":[]}
[]
["ت","اسم الموظف","تنفيذ الخالص ",null,"Goto SALIM"]
[1,"اشواق رزوقي",924483]
[2,"طلبة عبد  جسام",226600]
[3,"عذراء علي عبد",67000]
[4,"قسمه حميد",20600]
[5,"محمد تعبان محمد",123600]
[6,"محمد خالد",128750]
[7,"وسام فاضل",177910]
[null,"المجموع",1668943]

{"sheet":"تنفيذ الزهور","index":40,"n_rows":5,"n_cols":5,"rows_kept":5,"cut":false,"hidden":false,"merged":[]}
[]
["ت","اسم الموظف","تنفيذ الزهور",null,"Goto SALIM"]
[1,"محمد تعبان محمد",362450]
[2,"وسام فاضل",100000]
[null,"المجموع",462450]

{"sheet":"تنفيذ العزيزية","index":41,"n_rows":4,"n_cols":5,"rows_kept":4,"cut":false,"hidden":false,"merged":[]}
[]
["ت","اسم الموظف","تنفيذ العزيزية",null,"Goto SALIM"]
[1,"امجد حميد",129060]
[null,"المجموع",129060]

{"sheet":"تنفيذ بعقوبة","index":42,"n_rows":25,"n_cols":5,"rows_kept":25,"cut":false,"hidden":false,"merged":[]}
[]
["ت","اسم الموظف","تنفيذ بعقوبة",null,"Goto SALIM"]
[1,"احمد حميد",1477890]
[2,"اسيل خليل",489450]
[3,"اشواق رزوقي",553631]
[4,"امجد حميد",1545570]
[5,"بيداء فارس",103000]
[6,"حسام الدين طه محسن",206000]
[7,"حسام رشيد",1970210]
[8,"حسين صكبان ",1833110]
[9,"سهاد نبهان جلوب",757778]
[10,"طلبة عبد  جسام",674140]
[11,"عذراء علي عبد",149170]
[12,"قسمه حميد",273620]
[13,"ليلى علي حميد",1255595]
[14,"محمد تعبان محمد",1744530]
[15,"محمد خالد",1097250]
[16,"مصطفى كريم ",1618890]
[17,"نضال إبراهيم",725670]
[18,"نورة علاء حسين",179630]
[19,"نوفل محمد إسماعيل",1870981]
[20,"هشام محي رشيد",197300]
[21,"وسام فاضل",359660]
[22,"وسام احمد جواد",1337130]
[null,"المجموع",20420205]

{"sheet":"تنفيذ بلدروز","index":43,"n_rows":5,"n_cols":5,"rows_kept":5,"cut":false,"hidden":false,"merged":[]}
[]
["ت","اسم الموظف","تنفيذ بلدروز",null,"Goto SALIM"]
[1,"اشواق رزوقي",233000]
[2,"مصطفى كريم ",154500]
[null,"المجموع",387500]

{"sheet":"تنفيذ خان بني سعد","index":44,"n_rows":7,"n_cols":5,"rows_kept":7,"cut":false,"hidden":false,"merged":[]}
[]
["ت","اسم الموظف","تنفيذ خان بني سعد",null,"Goto SALIM"]
[1,"احمد حميد",176250]
[2,"حسام رشيد",80200]
[3,"عذراء علي عبد",157824]
[4,"مصطفى كريم ",623440]
[null,"المجموع",1037714]

{"sheet":"توقيفات تقاعدية","index":45,"n_rows":29,"n_cols":5,"rows_kept":29,"cut":false,"hidden":false,"merged":[]}
[]
["ت","اسم الموظف","توقيفات تقاعدية",null,"Goto SALIM"]
[1,"احمد حميد",31736220]
[2,"اسيل خليل",31958400]
[3,"اشواق رزوقي",23477500]
[4,"امجد حميد",32105200]
[5,"بيداء فارس",34874300]
[6,"حسام الدين طه محسن",16612300]
[7,"حسام رشيد",34968300]
[8,"حسين صكبان ",34618226]
[9,"سلام إبراهيم",32874173]
[10,"سهاد نبهان جلوب",26562750]
[11,"شاكر علي ",27539800]
[12,"طلبة عبد  جسام",22426000]
[13,"عذراء علي عبد",30283300]
[14,"فاتن عبد العزيز ",26130500]
[15,"قسمه حميد",28115550]
[16,"ليلى علي حميد",30194800]
[17,"محمد تعبان محمد",31689250]
[18,"محمد خالد",31289589]
[19,"محمد عبد فليح",15118600]
[20,"مصطفى كريم ",32151423]
[21,"نضال إبراهيم",24923600]
[22,"نورة علاء حسين",29553633]
[23,"نوفل محمد إسماعيل",36831100]
[24,"هشام محي رشيد",19729800]
[25,"وسام فاضل",27911116]
[26,"وسام احمد جواد",24672850]
[null,"المجموع",738348280]

{"sheet":"استقطاع (4) رافدين 311 سيارات","index":46,"n_rows":7,"n_cols":5,"rows_kept":7,"cut":false,"hidden":false,"merged":[]}
[]
["ت","اسم الموظف","استقطاع (4) رافدين 311 سيارات",null,"Goto SALIM"]
[1,"طلبة عبد  جسام",520000]
[2,"قسمه حميد",1007000]
[3,"محمد تعبان محمد",340000]
[4,"وسام فاضل",192420]
[null,"المجموع",2059420]

{"sheet":"استقطاع (4)سلفة زواج فاروق","index":47,"n_rows":5,"n_cols":5,"rows_kept":5,"cut":false,"hidden":false,"merged":[]}
[]
["ت","اسم الموظف","استقطاع (4)سلفة زواج فاروق",null,"Goto SALIM"]
[1,"حسام رشيد",104000]
[2,"نورة علاء حسين",104000]
[null,"المجموع",208000]

{"sheet":"سلفة متنوعة","index":48,"n_rows":16,"n_cols":5,"rows_kept":16,"cut":false,"hidden":false,"merged":[]}
[]
["ت","اسم الموظف","سلفة متنوعة",null,"Goto SALIM"]
[1,"احمد حميد",219731]
[2,"امجد حميد",231570]
[3,"حسام الدين طه محسن",677100]
[4,"حسام رشيد",338000]
[5,"سلام إبراهيم",100000]
[6,"سهاد نبهان جلوب",80725]
[7,"شاكر علي ",48000]
[8,"محمد خالد",534701]
[9,"مصطفى كريم ",340000]
[10,"نضال إبراهيم",60000]
[11,"نورة علاء حسين",103620]
[12,"هشام محي رشيد",232910]
[13,"وسام فاضل",110593]
[null,"المجموع",3076950]

{"sheet":"استقطاع (4)شركة ديالى","index":49,"n_rows":4,"n_cols":5,"rows_kept":4,"cut":false,"hidden":false,"merged":[]}
[]
["ت","اسم الموظف","استقطاع (4)شركة ديالى",null,"Goto SALIM"]
[1,"مصطفى كريم ",100000]
[null,"المجموع",100000]

{"sheet":"ضريبة دخل","index":50,"n_rows":29,"n_cols":5,"rows_kept":29,"cut":false,"hidden":false,"merged":[]}
[]
["ت","اسم الموظف","ضريبة دخل",null,"Goto SALIM"]
[1,"احمد حميد",11638116]
[2,"اسيل خليل",13371973]
[3,"اشواق رزوقي",5901735]
[4,"امجد حميد",11510388]
[5,"بيداء فارس",16344874]
[6,"حسام الدين طه محسن",4684272]
[7,"حسام رشيد",12140261]
[8,"حسين صكبان ",12537141]
[9,"سلام إبراهيم",11090080]
[10,"سهاد نبهان جلوب",9944918]
[11,"شاكر علي ",10172728]
[12,"طلبة عبد  جسام",6351202]
[13,"عذراء علي عبد",10330535]
[14,"فاتن عبد العزيز ",9983794]
[15,"قسمه حميد",9372202]
[16,"ليلى علي حميد",12269591]
[17,"محمد تعبان محمد",10439010]
[18,"محمد خالد",9186999]
[19,"محمد عبد فليح",3233540]
[20,"مصطفى كريم ",9224458]
[21,"نضال إبراهيم",8319417]
[22,"نورة علاء حسين",11201373]
[23,"نوفل محمد إسماعيل",15421396]
[24,"هشام محي رشيد",7850757]
[25,"وسام فاضل",9504096]
[26,"وسام احمد جواد",10308330]
[null,"المجموع",262333186]

{"sheet":"عقاري","index":51,"n_rows":28,"n_cols":5,"rows_kept":28,"cut":false,"hidden":false,"merged":[]}
[]
["ت","اسم الموظف","عقاري",null,"Goto SALIM"]
[1,"احمد حميد",1221750]
[2,"اسيل خليل",1335250]
[3,"اشواق رزوقي",1105500]
[4,"امجد حميد",372000]
[5,"بيداء فارس",1724000]
[6,"حسام رشيد",713750]
[7,"حسين صكبان ",1291250]
[8,"سلام إبراهيم",53000]
[9,"سهاد نبهان جلوب",744500]
[10,"شاكر علي ",301750]
[11,"طلبة عبد  جسام",560000]
[12,"عذراء علي عبد",587000]
[13,"فاتن عبد العزيز ",1334750]
[14,"قسمه حميد",1092500]
[15,"ليلى علي حميد",880000]
[16,"محمد تعبان محمد",963000]
[17,"محمد خالد",983000]
[18,"محمد عبد فليح",527500]
[19,"مصطفى كريم ",1065500]
[20,"نضال إبراهيم",368000]
[21,"نورة علاء حسين",745500]
[22,"نوفل محمد إسماعيل",776500]
[23,"هشام محي رشيد",186000]
[24,"وسام فاضل",1422500]
[25,"وسام احمد جواد",1065000]
[null,"المجموع",21419500]

{"sheet":"استقطاع (4) قرض اسكان بلدروز","index":52,"n_rows":4,"n_cols":5,"rows_kept":4,"cut":false,"hidden":false,"merged":[]}
[]
["ت","اسم الموظف","استقطاع (4) قرض اسكان بلدروز",null,"Goto SALIM"]
[1,"عذراء علي عبد",133611]
[null,"المجموع",133611]

{"sheet":"استقطاع (4)مصرف الرافدين العلو","index":53,"n_rows":7,"n_cols":5,"rows_kept":7,"cut":false,"hidden":false,"merged":[]}
[]
["ت","اسم الموظف","استقطاع (4)مصرف الرافدين العلوية",null,"Goto SALIM"]
[1,"حسين صكبان ",420000]
[2,"عذراء علي عبد",420000]
[3,"محمد تعبان محمد",519000]
[4,"مصطفى كريم ",519000]
[null,"المجموع",1878000]

{"sheet":"استقطاع 5 فرع الهندية","index":54,"n_rows":2,"n_cols":5,"rows_kept":2,"cut":false,"hidden":false,"merged":[]}
[]
[null,"اسم الموظف","استقطاع 5 فرع الهندية",null,"Goto SALIM"]

{"sheet":"تنفيذ الدورة","index":55,"n_rows":2,"n_cols":5,"rows_kept":2,"cut":false,"hidden":false,"merged":[]}
[]
[null,"اسم الموظف","تنفيذ الدورة",null,"Goto SALIM"]

{"sheet":"تنفيذ كربلاء","index":56,"n_rows":2,"n_cols":5,"rows_kept":2,"cut":false,"hidden":false,"merged":[]}
[]
[null,"اسم الموظف","تنفيذ كربلاء",null,"Goto SALIM"]

{"sheet":"استقطاع (4) 30 مليون فاروق","index":57,"n_rows":4,"n_cols":5,"rows_kept":4,"cut":false,"hidden":false,"merged":[]}
[]
["ت","اسم الموظف","استقطاع (4) 30 مليون فاروق",null,"Goto SALIM"]
[1,"قسمه حميد",410258]
[null,"المجموع",410258]

{"sheet":"استقطاع (4) 5 مليون مصرف رافدي","index":58,"n_rows":2,"n_cols":5,"rows_kept":2,"cut":false,"hidden":false,"merged":[]}
[]
[null,"اسم الموظف","استقطاع (4) 5 مليون مصرف رافدين ",null,"Goto SALIM"]

{"sheet":"استقطاع (4) مديرية زراعة ديالى","index":59,"n_rows":4,"n_cols":5,"rows_kept":4,"cut":false,"hidden":false,"merged":[]}
[]
["ت","اسم الموظف","استقطاع (4) مديرية زراعة ديالى",null,"Goto SALIM"]
[1,"حسام رشيد",100000]
[null,"المجموع",100000]

{"sheet":"استقطاع (4) 10 مليون مقدادية","index":60,"n_rows":5,"n_cols":5,"rows_kept":5,"cut":false,"hidden":false,"merged":[]}
[]
["ت","اسم الموظف","استقطاع (4) 10 مليون مقدادية",null,"Goto SALIM"]
[1,"سهاد نبهان جلوب",192084]
[2,"محمد خالد",269166]
[null,"المجموع",461250]

{"sheet":"استقطاع (4) رشيد شنونا 10 مليو","index":61,"n_rows":4,"n_cols":5,"rows_kept":4,"cut":false,"hidden":false,"merged":[]}
[]
["ت","اسم الموظف","استقطاع (4) رشيد شنونا 10 مليون",null,"Goto SALIM"]
[1,"اشواق رزوقي",192084]
[null,"المجموع",192084]

{"sheet":"استقطاع (4)جامعة ديالى قسم الش","index":62,"n_rows":4,"n_cols":5,"rows_kept":4,"cut":false,"hidden":false,"merged":[]}
[]
["ت","اسم الموظف","استقطاع (4)جامعة ديالى قسم الشؤون المالية ",null,"Goto SALIM"]
[1,"بيداء فارس",248800]
[null,"المجموع",248800]

{"sheet":"استقطاع (4) فرع الاعظمية 10 مل","index":63,"n_rows":4,"n_cols":5,"rows_kept":4,"cut":false,"hidden":false,"merged":[]}
[]
["ت","اسم الموظف","استقطاع (4) فرع الاعظمية 10 مليون",null,"Goto SALIM"]
[1,"حسام رشيد",204792]
[null,"المجموع",204792]

{"sheet":"استقطاع (4) 30 مليون المقدادية","index":64,"n_rows":4,"n_cols":5,"rows_kept":4,"cut":false,"hidden":false,"merged":[]}
[]
["ت","اسم الموظف","استقطاع (4) 30 مليون المقدادية",null,"Goto SALIM"]
[1,"حسام رشيد",269166]
[null,"المجموع",269166]

{"sheet":"استقطاع (4)المصرف العراقي للتج","index":65,"n_rows":4,"n_cols":5,"rows_kept":4,"cut":false,"hidden":false,"merged":[]}
[]
["ت","اسم الموظف","استقطاع (4)المصرف العراقي للتجارة/ النجف الاشرف",null,"Goto SALIM"]
[1,"محمد تعبان محمد",322675]
[null,"المجموع",322675]

{"sheet":"استقطاع(4) سلفة زواج صندوق الت","index":66,"n_rows":4,"n_cols":5,"rows_kept":4,"cut":false,"hidden":false,"merged":[]}
[]
["ت","اسم الموظف","استقطاع(4) سلفة زواج صندوق التربية ",null,"Goto SALIM"]
[1,"امجد حميد",104167]
[null,"المجموع",104167]